bitfinex-derivatives/quotes_BNBF0:USTF0_20250406
["timestamp","ask_amount","ask_price","bid_price","bid_amount"]
[1743926841149,0.58189959,590.3,589.68,0.28743246]
[1743926841448,1.81431443,590.29,589.68,0.28743246]
[1743926841753,1.23241484,590.28,589.68,0.28743246]
[1743926841952,0.58202573,590.27,589.68,0.28743246]
[1743926842148,1.81444057,590.26,589.68,0.28743246]
[1743926842352,0.58202573,590.25,589.67,0.28743246]
[1743926842552,0.58202573,590.24,589.66,1.26816657]
[1743926842852,1.81444057,590.23,589.67,0.28751243]
[1743926843153,1.81444057,590.22,589.66,1.33316657]
[1743926843351,0.58202573,590.21,589.66,1.33316657]
[1743926843553,1.81444057,590.2,589.66,0.065]
[1743926843853,0.58202573,590.19,589.66,0.065]
[1743926844055,1.81444057,590.18,589.66,0.065]
[1743926844250,0.58202573,590.17,589.66,0.065]
[1743926844450,1.81444057,590.16,589.66,0.065]
[1743926844647,0.58202573,590.15,589.66,0.065]
[1743926844850,1.81444057,590.14,589.66,0.065]
[1743926845049,0.58202573,590.13,589.67,0.28754909]
[1743926845247,1.81444057,590.12,589.67,0.28754909]
[1743926845452,0.58202573,590.11,589.66,0.065]
[1743926845753,1.81444057,590.1,589.67,0.28754907]
[1743926845948,0.58202573,590.09,589.67,0.28754907]
[1743926846149,1.81444057,590.08,589.66,0.065]
[1743926846355,1.81444057,590.07,589.66,0.065]
[1743926846554,0.58202573,590.06,589.66,0.065]
[1743926846854,1.81444057,590.05,589.66,0.065]
[1743926847052,0.58202573,590.04,589.66,0.065]
[1743926847253,0.58202573,590.03,589.66,0.065]
[1743926847452,1.81444057,590.02,589.66,0.065]
[1743926847755,0.57635783,590.01,589.66,0.065]
[1743926847953,0.57635783,590.0,589.66,0.065]
[1743926848148,1.23241484,589.99,589.66,0.065]
[1743926848754,1.23241484,589.98,589.66,0.065]
[1743926849455,1.23241484,589.97,589.66,0.065]
[1743926850052,0.57584851,590.31,589.66,0.065]
[1743926850053,1.23241484,589.96,589.66,0.065]
[1743926850848,0.57584851,590.26,589.66,0.065]
[1743926851053,0.57584851,590.25,589.66,0.065]
[1743926851250,0.57539797,590.24,589.66,0.065]
[1743926851451,1.80526854,590.23,589.66,0.065]
[1743926851650,1.80526854,590.22,589.66,0.065]
[1743926851953,0.57539797,590.21,589.66,0.065]
[1743926852156,1.80526854,590.2,589.66,0.065]
[1743926852356,0.57539797,590.19,589.66,0.065]
[1743926852553,1.80526854,590.18,589.66,0.065]
[1743926852852,0.57539797,590.17,589.66,0.065]
[1743926853057,0.57539797,590.16,589.66,0.065]
[1743926853255,1.80526854,590.15,589.66,0.065]
[1743926853459,0.57539797,590.14,589.66,0.065]
[1743926853659,0.57539797,590.13,589.66,0.065]
[1743926853860,1.80526854,590.12,589.66,0.065]
[1743926854060,0.57539797,590.11,589.66,0.065]
[1743926854258,0.57539797,590.1,589.66,0.065]
[1743926854456,0.57539797,590.09,589.66,0.065]
[1743926854660,1.22987057,590.1,589.66,0.065]
[1743926854661,0.57539797,590.08,589.66,0.065]
[1743926854861,0.57539797,590.09,589.66,0.065]
[1743926855057,1.22987057,590.1,589.66,0.065]
[1743926855058,0.57539797,590.08,589.66,0.065]
[1743926855255,1.22987057,590.08,589.66,0.065]
[1743926855462,1.22987057,590.07,589.66,0.065]
[1743926855764,1.72887057,590.07,589.66,0.065]
[1743926855965,1.22987057,590.06,589.66,0.065]
[1743926856663,1.22987057,590.05,589.66,0.065]
[1743926856868,1.22987057,590.04,589.66,0.065]
[1743926857469,1.22987057,590.03,589.66,0.065]
[1743926858268,0.499,590.07,589.66,0.065]
[1743926858764,1.227715,590.06,589.66,0.065]
[1743926859269,1.227715,590.05,589.66,0.065]
[1743926859670,1.227715,590.04,589.66,0.065]
[1743926860167,1.227715,590.03,589.66,0.065]
[1743926860565,1.227715,590.06,589.66,0.065]
[1743926861169,1.227715,590.05,589.66,0.065]
[1743926861470,1.227715,590.06,589.66,0.065]
[1743926862070,1.227715,590.05,589.66,0.065]
[1743926862671,1.227715,590.06,589.66,0.065]
[1743926863375,1.227715,590.05,589.66,0.065]
[1743926863770,1.227715,590.06,589.66,0.065]
[1743926864572,1.227715,590.05,589.66,0.065]
[1743926865168,1.227715,590.05,589.33,0.2950015]
[1743926865373,1.227715,590.05,589.34,0.28761525]
[1743926865573,1.227715,590.04,589.34,0.28761525]
[1743926866370,1.227715,590.06,589.34,0.28761525]
[1743926866575,1.227715,590.06,589.31,0.29501901]
[1743926866773,1.227715,590.06,589.32,0.28761525]
[1743926866968,1.227715,590.05,589.32,0.28761525]
[1743926867170,1.227715,590.05,589.31,0.29501901]
[1743926867368,1.227715,590.05,589.33,0.065]
[1743926867575,1.227715,590.05,589.34,0.28763496]
[1743926867774,1.227715,590.04,589.34,0.28763496]
[1743926868074,1.227715,590.03,589.34,0.28763496]
[1743926868676,1.227715,590.02,589.33,0.065]
[1743926868975,1.227715,590.02,589.34,0.28763172]
[1743926869577,1.80195638,590.31,589.34,0.28763172]
[1743926869777,0.57424138,590.3,589.34,0.28763172]
[1743926869978,0.57424138,590.29,589.34,0.28763172]
[1743926870179,1.80195638,590.28,589.34,0.28763172]
[1743926870375,0.57424138,590.27,589.33,0.065]
[1743926870573,1.80195638,590.26,589.34,0.28762665]
[1743926870775,0.57424138,590.25,589.34,0.28762665]
[1743926870977,0.57424138,590.24,589.34,0.28762665]
[1743926871179,0.57424138,590.23,589.34,0.28762665]
[1743926871474,0.57424138,590.22,589.34,0.28762665]
[1743926871678,0.57424138,590.21,589.34,0.28762665]
[1743926871878,1.80195638,590.2,589.34,0.28762665]
[1743926872174,0.57424138,590.19,589.34,0.28762665]
[1743926872378,1.80195638,590.18,589.34,0.28762665]
[1743926872679,1.80195638,590.17,589.34,0.28762665]
[1743926872872,1.227715,590.17,589.34,0.28762665]
[1743926873472,1.227715,590.16,589.34,0.28762665]
[1743926873774,1.227715,590.15,589.33,0.065]
[1743926873981,1.227715,590.15,589.34,0.28760808]
[1743926874377,1.227715,590.14,589.34,0.28760808]
[1743926875075,1.227715,590.13,589.34,0.28760808]
[1743926875580,1.227715,590.12,589.34,0.28760808]
[1743926876481,1.227715,590.11,589.34,0.28760808]
[1743926877081,1.227715,590.1,589.33,0.065]
[1743926877280,1.227715,590.1,589.34,0.28760585]
[1743926877477,1.227715,590.1,589.33,0.065]
[1743926877681,1.227715,590.1,589.34,0.28758659]
[1743926877882,1.227715,590.21,589.34,0.28758659]
[1743926878182,0.394,590.2,589.34,0.28758659]
[1743926878581,1.227715,590.19,589.34,0.28758659]
[1743926878780,1.227715,590.19,589.33,0.065]
[1743926878982,1.227715,590.18,589.34,0.287568]
[1743926879780,1.227715,590.17,589.34,0.287568]
[1743926880483,1.227715,590.16,589.34,0.287568]
[1743926880883,1.227715,590.15,589.34,0.287568]
[1743926881081,1.227715,590.15,589.38,1.26816657]
[1743926881284,0.521,590.14,589.39,0.287568]
[1743926881486,1.748715,590.14,589.39,0.287568]
[1743926881884,1.227715,590.13,589.4,0.28758752]
[1743926882184,1.227715,590.12,589.41,0.28758752]
[1743926882384,1.227715,590.12,589.39,0.28758752]
[1743926882584,1.227715,590.12,589.38,1.26816657]
[1743926882585,1.227715,590.12,589.4,0.28758752]
[1743926882786,1.227715,590.11,589.39,0.28758752]
[1743926883086,1.227715,590.11,589.4,0.28758752]
[1743926883294,1.227715,590.11,589.34,0.28758752]
[1743926883488,1.227715,590.13,589.35,0.28758489]
[1743926883692,1.227715,590.13,589.34,0.28758489]
[1743926883992,1.227715,590.12,589.35,0.28758489]
[1743926884194,1.227715,590.12,589.34,0.28758489]
[1743926884388,1.227715,590.12,589.35,0.28758489]
[1743926884590,1.227715,590.12,589.34,0.58252764]
[1743926884887,1.227715,590.11,589.35,0.28758489]
[1743926885487,1.227715,590.13,589.35,0.28758489]
[1743926885688,1.227715,590.13,589.34,0.29494275]
[1743926885888,1.227715,590.13,589.35,0.2875585]
[1743926886290,0.521,590.14,589.35,0.2875585]
[1743926886895,0.521,590.14,589.44,1.26816657]
[1743926887191,0.521,590.14,589.45,0.2875585]
[1743926888497,0.521,590.14,589.46,0.28755212]
[1743926888699,0.521,590.14,589.45,0.28755212]
[1743926890300,0.521,590.14,589.46,0.28755212]
[1743926890596,1.22742524,590.13,589.38,0.28755212]
[1743926890799,1.22742524,590.13,589.39,0.2875507]
[1743926891000,0.521,590.14,589.38,0.2875507]
[1743926891196,0.521,590.14,589.39,0.2875507]
[1743926891395,0.521,590.14,589.38,0.2875507]
[1743926891600,0.521,590.14,589.38,0.58246345]
[1743926891901,1.22801439,590.13,589.39,0.2875507]
[1743926892400,0.521,590.14,589.4,0.065]
[1743926892603,0.521,590.14,589.4,0.35255033]
[1743926892901,0.521,590.14,589.41,0.28755033]
[1743926893304,1.22862053,590.13,589.41,0.28755033]
[1743926893702,1.22862053,590.12,589.41,0.28755033]
[1743926894197,1.22862053,590.11,589.41,0.28755033]
[1743926894602,1.22862053,590.1,589.41,0.28755033]
[1743926895101,0.57410811,590.09,589.41,0.28755033]
[1743926895401,1.22862053,590.08,589.41,0.28755033]
[1743926895600,1.80272864,590.08,589.41,0.28755033]
[1743926895802,0.57410811,590.07,589.41,0.28755033]
[1743926896002,1.22862053,590.08,589.41,0.28755033]
[1743926896203,0.57508686,590.07,589.41,0.28755033]
[1743926896404,1.22862053,590.07,589.41,0.28755033]
[1743926896604,1.22862053,590.06,589.41,0.28755033]
[1743926896804,1.22862053,590.06,589.4,1.33316657]
[1743926897000,1.22862053,590.06,589.41,0.28758741]
[1743926897399,1.80405776,590.05,589.41,0.28758741]
[1743926897598,0.57543723,590.04,589.41,0.28758741]
[1743926897799,0.57543723,590.03,589.41,0.28758741]
[1743926898000,1.80405776,590.02,589.41,0.28758741]
[1743926898203,0.57543723,590.01,589.41,0.28758741]
[1743926898400,0.57543723,590.0,589.41,0.28758741]
[1743926898705,1.80423258,589.99,589.41,0.28758741]
[1743926898899,1.22862053,589.99,589.41,0.28758741]
[1743926899504,1.22862053,589.98,589.41,0.28758741]
[1743926900005,1.22862053,589.97,589.4,0.065]
[1743926900206,1.22862053,589.96,589.41,0.28761202]
[1743926900601,1.22862053,589.95,589.41,0.28761202]
[1743926901101,1.22862053,589.94,589.41,0.28761202]
[1743926901506,1.22862053,589.93,589.41,0.28761202]
[1743926901704,1.22862053,589.92,589.41,0.28761202]
[1743926902106,1.22862053,589.91,589.41,0.28761202]
[1743926902607,1.22862053,589.9,589.41,0.28761202]
[1743926903106,1.22862053,589.89,589.41,0.28761202]
[1743926903803,1.22862053,589.88,589.41,0.28761202]
[1743926904410,0.534,589.94,589.41,0.28761202]
[1743926904608,0.57684356,589.93,589.41,0.28761202]
[1743926904808,0.534,589.94,589.41,0.28761202]
[1743926905204,1.80991606,589.93,589.41,0.28761202]
[1743926905510,1.2330363,589.93,589.41,0.28761202]
[1743926905710,1.2330363,589.92,589.41,0.28761202]
[1743926906509,1.2330363,589.91,589.41,0.28761202]
[1743926906910,1.2330363,589.9,589.4,0.065]
[1743926907110,1.2330363,589.9,589.41,0.28761609]
[1743926907710,1.2330363,589.89,589.41,0.28761609]
[1743926908206,1.2330363,589.88,589.41,0.28761609]
[1743926908711,0.534,589.94,589.42,0.28761627]
[1743926908909,0.489,589.87,589.41,0.28761627]
[1743926909107,0.489,589.87,589.42,0.28761627]
[1743926909309,0.489,589.87,589.43,0.28761627]
[1743926909508,0.489,589.87,589.44,0.28761627]
[1743926909706,0.489,589.87,589.41,0.28761627]
[1743926910010,0.489,589.87,589.42,0.28761627]
[1743926910305,0.489,589.87,589.43,0.28761627]
[1743926910511,0.489,589.87,589.41,0.28761627]
[1743926910811,0.489,589.87,589.4,0.065]
[1743926911012,0.489,589.87,589.41,0.28761261]
[1743926911911,0.489,589.87,589.4,0.065]
[1743926912113,0.489,589.87,589.41,0.28761262]
[1743926912613,0.489,589.87,589.33,0.28761262]
[1743926912814,0.489,589.87,589.34,0.28761262]
[1743926913112,0.489,589.87,589.35,0.28761262]
[1743926913315,0.489,589.87,589.33,0.28761262]
[1743926913514,0.489,589.87,589.32,1.26816657]
[1743926913809,0.489,589.87,589.33,0.28761606]
[1743926915009,0.489,589.87,589.32,1.26816657]
[1743926915213,0.489,589.87,589.34,0.065]
[1743926915414,0.489,589.87,589.35,0.28761351]
[1743926917813,0.411,589.86,589.35,0.28761351]
[1743926918419,0.411,589.86,589.34,0.065]
[1743926918615,0.411,589.86,589.35,0.28755732]
[1743926918920,0.411,589.86,589.36,1.26816657]
[1743926919120,0.411,589.86,589.37,0.28755732]
[1743926920824,0.411,589.86,589.38,0.28758658]
[1743926921117,0.411,589.86,589.39,0.28758658]
[1743926921423,0.411,589.86,589.4,0.28758658]
[1743926921722,0.411,589.86,589.41,0.28758658]
[1743926921922,0.411,589.86,589.42,0.28759961]
[1743926922117,0.411,589.86,589.43,0.28759961]
[1743926922319,0.411,589.86,589.35,0.28759961]
[1743926922519,0.411,589.86,589.36,0.28759961]
[1743926922717,0.411,589.86,589.35,0.28759961]
[1743926923019,0.411,589.86,589.36,0.28759961]
[1743926923324,0.411,589.86,589.35,0.28759961]
[1743926923520,0.411,589.86,589.36,0.28759961]
[1743926923725,0.411,589.86,589.35,0.28759961]
[1743926923925,0.411,589.86,589.37,0.28759961]
[1743926924120,0.411,589.86,589.38,0.28759961]
[1743926924325,0.411,589.86,589.35,0.28759961]
[1743926924524,0.411,589.86,589.36,0.28759961]
[1743926924725,0.411,589.86,589.35,0.28759961]
[1743926930229,0.411,589.86,589.36,0.28761892]
[1743926930429,0.411,589.86,589.35,0.28761892]
[1743926930629,0.411,589.86,589.37,0.28761892]
[1743926930829,0.411,589.86,589.38,0.28761892]
[1743926931023,0.411,589.86,589.34,0.065]
[1743926931024,0.411,589.86,589.35,0.28761892]
[1743926931227,0.411,589.86,589.36,0.28761892]
[1743926931424,0.411,589.86,589.35,0.28761892]
[1743926931625,0.411,589.86,589.36,0.28761892]
[1743926931829,0.411,589.86,589.35,0.28761892]
[1743926932025,0.411,589.86,589.36,0.28761892]
[1743926932225,0.411,589.86,589.35,0.28761892]
[1743926933230,1.23264921,589.85,589.35,0.28761892]
[1743926933529,1.23264921,589.84,589.35,0.28761892]
[1743926933931,0.411,589.86,589.35,0.28761892]
[1743926934430,1.23258507,589.85,589.35,0.28761892]
[1743926934930,0.411,589.86,589.35,0.28761892]
[1743926935531,1.2324582,589.85,589.35,0.28761892]
[1743926936331,0.411,589.86,589.35,0.28761892]
[1743926936935,0.411,589.86,589.36,0.28763414]
[1743926937135,0.411,589.86,589.35,0.28763414]
[1743926937337,0.411,589.86,589.36,0.28763414]
[1743926937538,1.23238539,589.85,589.35,0.28763414]
[1743926937736,0.411,589.86,589.36,0.28763447]
[1743926937938,0.411,589.86,589.37,0.28763447]
[1743926938138,0.411,589.86,589.34,0.065]
[1743926938543,0.57642959,589.85,589.35,0.28768883]
[1743926938840,1.80837284,589.84,589.34,0.065]
[1743926939042,0.57642959,589.83,589.34,0.065]
[1743926939241,1.80837284,589.82,589.34,0.065]
[1743926939437,0.57642959,589.81,589.34,0.065]
[1743926939642,0.57642959,589.8,589.34,0.065]
[1743926939843,1.80837284,589.79,589.34,0.065]
[1743926940044,0.57642959,589.78,589.34,0.065]
[1743926940248,0.57642959,589.77,589.34,0.065]
[1743926940440,0.57642959,589.76,589.34,0.065]
[1743926940646,0.57642959,589.75,589.34,0.065]
[1743926940841,1.23194325,589.75,589.34,0.065]
[1743926941648,1.23194325,589.74,589.34,0.065]
[1743926941850,1.23194325,589.74,588.9,1.26816657]
[1743926942044,1.23194325,589.74,588.91,0.62732425]
[1743926942242,0.5758732,589.83,588.92,0.62731849]
[1743926942447,1.80653644,589.82,588.93,0.62731272]
[1743926942647,0.5758732,589.81,588.94,0.28771379]
[1743926942844,1.23066324,589.82,588.94,0.28771379]
[1743926943048,0.57576449,589.81,588.93,0.33959893]
[1743926943249,1.23066324,589.81,588.94,0.28771302]
[1743926943750,1.23066324,589.8,588.94,0.28771302]
[1743926944548,1.23066324,589.79,588.93,1.9028483]
[1743926944751,1.72166324,589.79,588.94,0.28767203]
[1743926944951,0.491,589.79,588.94,0.62726519]
[1743926945147,0.491,589.79,588.95,0.35267203]
[1743926945353,0.491,589.79,588.96,0.62725366]
[1743926945554,0.491,589.79,588.97,0.62724789]
[1743926945754,0.491,589.79,588.98,0.62724213]
[1743926945953,0.491,589.79,588.99,0.62723636]
[1743926946153,0.491,589.79,589.0,0.6272306]
[1743926946353,0.491,589.79,589.01,0.28767203]
[1743926946554,0.491,589.79,589.02,0.33954704]
[1743926946755,0.491,589.79,589.03,0.28767203]
[1743926947055,0.491,589.79,589.03,0.6272133]
[1743926947255,0.491,589.79,589.04,0.28767203]
[1743926949659,0.491,589.79,589.05,0.2876711]
[1743926949858,0.491,589.79,589.04,0.2876711]
[1743926950057,0.491,589.79,589.05,0.2876711]
[1743926950454,0.491,589.79,589.06,0.2876711]
[1743926950654,0.491,589.79,589.04,0.2876711]
[1743926951357,0.491,589.79,589.03,0.33954127]
[1743926951557,0.491,589.79,589.04,0.28767772]
[1743926952958,0.491,589.79,589.03,0.33954127]
[1743926953162,0.491,589.79,589.04,0.2876764]
[1743926954564,0.491,589.79,589.03,0.33954127]
[1743926954764,0.491,589.79,589.04,0.28767955]
[1743926954964,0.491,589.79,589.06,1.26816657]
[1743926955465,0.491,589.79,589.07,0.28767927]
[1743926955666,0.491,589.79,589.08,0.28767927]
[1743926956061,0.491,589.79,589.09,0.28767927]
[1743926956263,0.491,589.79,589.07,0.28767927]
[1743926957767,0.491,589.79,589.12,1.26816657]
[1743926958167,0.491,589.79,589.13,0.28769815]
[1743926958867,0.55,589.78,589.13,0.28769815]
[1743926960670,0.55,589.78,589.09,0.28769815]
[1743926960971,0.55,589.78,589.1,0.28769815]
[1743926961271,0.55,589.78,589.09,0.28769815]
[1743926961471,0.55,589.78,589.1,0.28769815]
[1743926961771,0.55,589.78,589.08,0.2950753]
[1743926961772,0.55,589.78,589.11,0.28769815]
[1743926961972,1.229913,589.77,589.09,0.28769815]
[1743926962164,1.229913,589.76,589.1,0.28769815]
[1743926962369,1.229913,589.76,589.09,0.28769815]
[1743926962569,1.229913,589.75,589.1,0.28769815]
[1743926963170,1.229913,589.74,589.1,0.28769815]
[1743926963571,0.55,589.78,589.1,0.28769815]
[1743926964071,1.22961134,589.77,589.1,0.28769815]
[1743926964270,1.22961134,589.76,589.1,0.28769815]
[1743926965073,0.55,589.78,589.1,0.28769815]
[1743926965267,1.22953625,589.77,589.1,0.28769815]
[1743926965471,1.22953625,589.77,589.04,0.28769815]
[1743926965869,0.55,589.78,589.04,0.28769815]
[1743926967169,0.55,589.78,589.04,0.35269815]
[1743926967374,1.22934293,589.77,589.05,0.28769815]
[1743926967775,0.55,589.78,589.05,0.58275593]
[1743926967971,0.55,589.78,589.06,0.28769815]
[1743926968575,0.55,589.78,589.07,0.28769815]
[1743926968775,0.55,589.78,589.05,0.58276219]
[1743926968970,0.55,589.78,589.06,0.28769815]
[1743926970174,0.55,589.78,589.05,0.29506404]
[1743926970375,0.55,589.78,589.06,0.28771834]
[1743926971378,0.55,589.78,589.07,0.28771806]
[1743926971572,0.55,589.78,589.08,0.28771806]
[1743926971779,0.55,589.78,589.06,0.28771806]
[1743926972078,0.55,589.78,589.07,0.28771806]
[1743926972272,0.55,589.78,589.06,0.28771806]
[1743926972473,0.55,589.78,589.07,0.28771806]
[1743926972777,0.55,589.78,589.05,0.29507905]
[1743926972979,0.55,589.78,589.06,0.28771274]
[1743926974474,0.55,589.78,589.04,0.065]
[1743926974674,0.55,589.78,589.05,0.58270635]
[1743926974972,0.55,589.78,589.06,0.28767358]
[1743926975976,0.625,589.77,589.06,0.28767358]
[1743926976279,0.625,589.77,589.07,0.28766065]
[1743926976478,0.625,589.77,589.06,0.28766065]
[1743926976675,0.625,589.77,589.07,0.28766065]
[1743926976881,0.625,589.77,589.06,0.28766065]
[1743926977174,0.625,589.77,589.07,0.28766065]
[1743926977375,0.625,589.77,589.06,0.28766065]
[1743926977781,0.625,589.77,589.09,1.26816657]
[1743926978080,0.625,589.77,589.1,0.28763046]
[1743926979381,0.43,589.76,589.11,0.33949517]
[1743926979582,0.43,589.76,589.12,0.28763197]
[1743926979782,0.43,589.76,589.13,0.33948364]
[1743926979982,0.43,589.76,589.14,0.28763197]
[1743926980584,0.43,589.76,589.23,1.26816657]
[1743926980782,0.43,589.76,589.24,0.28763197]
[1743926982786,0.43,589.76,589.25,0.35263197]
[1743926982980,0.43,589.76,589.26,0.28763197]
[1743926984985,0.43,589.76,589.25,0.065]
[1743926985288,0.43,589.76,589.26,0.28762901]
[1743926986089,0.43,589.76,589.25,0.065]
[1743926986389,0.43,589.76,589.26,0.28763033]
[1743926987687,0.43,589.76,589.25,0.065]
[1743926987892,0.43,589.76,589.26,0.28762848]
[1743926988494,0.43,589.76,589.27,0.28762966]
[1743926988696,0.43,589.76,589.26,0.28762966]
[1743926988896,0.43,589.76,589.27,0.28762966]
[1743926989097,0.43,589.76,589.26,0.28762966]
[1743926989298,0.43,589.76,589.25,0.065]
[1743926989493,0.43,589.76,589.26,0.28762904]
[1743926990000,0.43,589.76,589.25,0.065]
[1743926990201,0.43,589.76,589.26,0.28762807]
[1743926991198,0.43,589.76,589.27,0.28762932]
[1743926991396,0.43,589.76,589.26,0.28762932]
[1743926992696,0.43,589.76,589.25,0.36001526]
[1743926992903,0.43,589.76,589.26,0.28762904]
[1743926997802,0.43,589.76,589.25,0.065]
[1743926998003,0.43,589.76,589.26,0.28768956]
[1743926999298,0.43,589.76,589.25,0.065]
[1743926999497,0.43,589.76,589.26,0.28769266]
[1743927001306,0.625,589.77,589.26,0.28769266]
[1743927003208,0.57606038,589.88,589.26,0.28769266]
[1743927003402,1.80735518,589.87,589.26,0.28769266]
[1743927003603,0.57606038,589.86,589.26,0.28769266]
[1743927003804,0.57606038,589.85,589.26,0.28769266]
[1743927004107,0.29506904,590.17,589.27,0.2877055]
[1743927004108,1.80735518,589.84,589.27,0.2877055]
[1743927004308,0.57606038,589.83,589.26,0.2877055]
[1743927004508,0.57606038,589.82,589.26,0.2877055]
[1743927004705,1.80735518,589.81,589.26,0.2877055]
[1743927004904,0.57606038,589.8,589.26,0.2877055]
[1743927005103,1.80735518,589.79,589.26,0.2877055]
[1743927005305,1.2312948,589.79,589.26,0.2877055]
[1743927005810,1.2312948,589.78,589.26,0.2877055]
[1743927006206,1.2312948,589.77,589.26,0.2877055]
[1743927007009,0.417,589.84,589.26,0.2877055]
[1743927007010,1.2312948,589.76,589.26,0.2877055]
[1743927007612,1.2312948,589.75,589.26,0.2877055]
[1743927007812,1.2312948,589.74,589.26,0.2877055]
[1743927008708,0.57594512,589.83,589.26,0.2877055]
[1743927008911,0.57594512,589.82,589.26,0.2877055]
[1743927009111,1.80691778,589.81,589.26,0.2877055]
[1743927009312,0.57593152,589.8,589.26,0.2877055]
[1743927009510,1.23098626,589.81,589.26,0.2877055]
[1743927009809,1.23098626,589.79,589.26,0.2877055]
[1743927010009,1.23098626,589.79,589.27,0.2877055]
[1743927010211,1.23098626,589.79,589.14,0.2877055]
[1743927010413,0.57588702,589.78,589.15,0.2877055]
[1743927010614,1.80687328,589.77,589.16,0.2877055]
[1743927010914,0.57588702,589.76,589.17,0.2877055]
[1743927011107,1.23098626,589.77,589.14,0.2877055]
[1743927011311,1.23098626,589.75,589.14,0.2877055]
[1743927011510,1.23098626,589.74,589.14,0.2877055]
[1743927011812,1.23098626,589.73,589.14,0.2877055]
[1743927012409,1.23098626,589.72,589.14,0.2877055]
[1743927012810,0.57577949,589.79,589.14,0.2877055]
[1743927013010,0.57577949,589.78,589.14,0.2877055]
[1743927013312,1.80630848,589.77,589.15,0.065]
[1743927013510,1.23052899,589.77,589.16,0.2877055]
[1743927014013,1.23052899,589.76,589.15,0.065]
[1743927014213,1.23052899,589.76,589.16,0.28773506]
[1743927014412,1.23052899,589.75,589.16,0.28773506]
[1743927014810,1.23052899,589.74,589.16,0.28773506]
[1743927015515,1.23052899,589.73,589.16,0.28773506]
[1743927015816,1.23052899,589.72,589.15,0.065]
[1743927016017,1.23052899,589.72,589.16,0.28773967]
[1743927016415,1.23052899,589.71,589.16,0.28773967]
[1743927017011,0.417,589.84,589.16,0.28773967]
[1743927017217,0.57558736,589.83,589.16,0.28773967]
[1743927017519,1.80574543,589.82,589.16,0.28773967]
[1743927017817,1.80574543,589.81,589.16,0.28773967]
[1743927018017,0.57558736,589.8,589.16,0.28773967]
[1743927018218,0.57558736,589.79,589.16,0.28773967]
[1743927018418,1.80574543,589.78,589.16,0.28773967]
[1743927018720,0.57558736,589.77,589.16,0.28773967]
[1743927018918,1.23015807,589.78,589.16,0.28773967]
[1743927019115,0.57551884,589.77,589.15,0.065]
[1743927019318,1.23015807,589.76,589.16,0.28774012]
[1743927019812,1.23015807,589.75,589.16,0.28774012]
[1743927020616,1.23015807,589.74,589.16,0.28774012]
[1743927020814,1.23015807,589.73,589.16,0.28774012]
[1743927021016,1.23015807,589.73,589.17,0.28773867]
[1743927021318,1.23015807,589.73,589.18,0.28773867]
[1743927021520,1.23015807,589.72,589.16,0.28773867]
[1743927021814,1.70815807,589.72,589.17,0.28773867]
[1743927022015,1.70815807,589.72,589.16,0.28773867]
[1743927022216,0.478,589.72,589.17,0.28773867]
[1743927022418,0.478,589.72,589.16,0.28773867]
[1743927024214,0.478,589.72,589.15,0.065]
[1743927024419,0.478,589.72,589.17,0.28773898]
[1743927024618,0.478,589.72,589.15,0.065]
[1743927024619,0.478,589.72,589.18,0.28773898]
[1743927024813,0.478,589.72,589.16,0.28773898]
[1743927025018,0.478,589.72,589.17,0.28773898]
[1743927025318,0.478,589.72,589.18,0.28773898]
[1743927025517,0.478,589.72,589.19,0.28773898]
[1743927025717,0.478,589.72,589.16,0.28773898]
[1743927026018,0.478,589.72,589.17,0.28773898]
[1743927026220,0.478,589.72,589.18,0.28773898]
[1743927026514,0.478,589.72,589.19,0.28773898]
[1743927026714,0.478,589.72,589.2,0.28773898]
[1743927026914,0.478,589.72,589.16,0.28773898]
[1743927027117,0.478,589.72,589.17,0.28773898]
[1743927027316,0.478,589.72,589.16,0.28773898]
[1743927027718,0.478,589.72,589.15,0.065]
[1743927028020,1.22984521,589.71,589.15,0.065]
[1743927028620,1.22984521,589.7,589.15,0.065]
[1743927029316,1.22984521,589.69,589.15,0.065]